bitfinex/quotes_ETHUSD_20250724
["timestamp","ask_amount","ask_price","bid_price","bid_amount"]
[1753320931665,4.181,3642.0,3641.9,3.96351948]
[1753320931868,0.002,3642.1,3641.9,3.17391948]
[1753320932098,0.002,3642.1,3642.0,3.97774409]
[1753320932299,7.182,3642.1,3642.0,4.37685988]
[1753320932467,7.182,3642.1,3642.0,1.63111579]
[1753320932871,7.182,3642.1,3642.0,1.232]
[1753320934071,9.9276687,3642.1,3642.0,1.232]
[1753320934275,9.9276687,3642.1,3642.0,0.8039]
[1753320936285,9.9276687,3642.1,3641.7,0.4281]
[1753320936286,2.74591057,3641.8,3641.7,0.7563]
[1753320936626,6.92691057,3641.8,3641.7,0.7563]
[1753320936908,6.92691057,3641.8,3641.7,1.1844]
[1753320937700,4.181,3641.8,3641.7,1.1844]
[1753320938225,6.92689488,3641.8,3641.7,1.1844]
[1753320938782,6.92689488,3641.8,3641.7,0.7563]
[1753320939883,7.06369488,3641.8,3641.7,0.7563]
[1753320940637,4.3178,3641.8,3641.7,0.7563]
[1753320941333,7.06369488,3641.8,3641.7,0.7563]
[1753320941810,4.3178,3641.8,3641.7,0.7563]
[1753320942534,4.3178,3641.8,3641.7,1.1844]
[1753320943034,4.181,3641.8,3641.7,1.1844]
[1753320943235,7.181,3641.8,3641.7,4.60042626]
[1753320944234,7.181,3641.8,3641.7,1.85445598]
[1753320944438,7.181,3641.8,3641.7,1.1868]
[1753320946328,9.92689488,3641.8,3641.7,0.7587]
[1753320946528,7.181,3641.8,3641.7,0.7587]
[1753320946828,7.181,3641.8,3641.6,1e-08]
[1753320946829,5.74597028,3641.7,3641.6,1e-08]
[1753320951666,35.74597028,3641.7,3641.6,1e-08]
[1753320951846,36.18647028,3641.7,3641.6,1e-08]
[1753320952841,36.96637028,3641.7,3641.6,1e-08]
[1753320954521,37.55667686,3641.7,3641.6,1e-08]
[1753320955452,37.55651745,3641.7,3641.6,1e-08]
[1753320955627,36.96637028,3641.7,3641.6,1e-08]
[1753320956130,37.55652725,3641.7,3641.6,1e-08]
[1753320956364,37.55852725,3641.7,3641.6,1e-08]
[1753320956730,36.96837028,3641.7,3641.6,1e-08]
[1753320957250,0.829,3641.1,3640.8,0.001]
[1753320957435,42.05838571,3640.9,3640.8,0.001]
[1753320957633,35.74657364,3640.9,3640.8,0.001]
[1753320957864,40.36707364,3640.9,3640.8,0.001]
[1753320958062,35.74657364,3640.9,3640.8,0.001]
[1753320958257,9.92957364,3640.9,3640.8,0.001]
[1753320960635,37.183,3640.9,3640.8,0.001]
[1753320960837,39.92957364,3640.9,3640.8,0.001]
[1753320961545,40.37007364,3640.9,3640.8,0.001]
[1753320963281,39.92957364,3640.9,3640.8,0.001]
[1753320964243,40.74197364,3640.9,3640.8,0.001]
[1753320964466,41.18247364,3640.9,3640.8,0.001]
[1753320966877,35.74657364,3640.9,3640.8,0.001]
[1753320967178,40.76067364,3640.9,3640.8,0.001]
[1753320967363,41.20117364,3640.9,3640.8,0.001]
[1753320967676,55.70117364,3640.9,3640.8,0.001]
[1753320967884,25.70117364,3640.9,3640.8,0.001]
[1753320968037,55.70117364,3640.9,3640.8,0.001]
[1753320968237,41.20117364,3640.9,3640.8,0.001]
[1753320969839,41.52995728,3640.9,3640.8,1e-08]
[1753320971221,2.7471018,3640.2,3640.1,0.04]
[1753320971378,47.12585264,3640.2,3640.1,0.04]
[1753320971725,41.2503018,3640.2,3640.1,0.04]
[1753320971871,41.2493018,3640.2,3640.1,0.04]
[1753320972075,37.0383018,3640.2,3640.1,0.04]
[1753320972313,41.2493018,3640.2,3640.1,0.04]
[1753320972814,41.2583018,3640.2,3640.1,0.04]
[1753320975274,41.58708544,3640.2,3640.1,1e-08]
[1753320976808,56.08708544,3640.2,3640.1,1e-08]
[1753320977002,55.7583018,3640.2,3640.1,1e-08]
[1753320979291,41.2583018,3640.2,3640.1,1e-08]
[1753320979711,41.46171107,3640.2,3640.1,1e-08]
[1753320980327,41.2583018,3640.2,3640.1,1e-08]
[1753320982316,55.7583018,3640.2,3640.1,1e-08]
[1753320982678,57.61148409,3640.2,3640.1,1e-08]
[1753320982982,36.57495667,3639.2,3639.1,0.04]
[1753320983182,40.81295667,3639.2,3639.1,0.04]
[1753320983489,41.28355667,3639.2,3639.1,0.04]
[1753320983886,39.98585667,3639.2,3639.1,0.04]
[1753320984083,40.12287777,3639.2,3639.1,0.04]
[1753320984283,39.98585667,3639.2,3639.1,0.04]
[1753320985612,40.45645667,3639.2,3639.1,0.04]
[1753320985815,10.45645667,3639.2,3639.1,0.04]
[1753320986019,35.74785667,3639.2,3639.1,0.04]
[1753320986187,39.98585667,3639.2,3639.1,0.04]
[1753320987893,9.98585667,3639.2,3639.1,0.04]
[1753320988215,39.98585667,3639.2,3639.1,0.04]
[1753320989302,9.98285667,3639.2,3639.1,0.8054]
[1753320989646,3.1368,3639.2,3639.1,1.2335]
[1753320989928,7.3708,3639.2,3639.1,1.2335]
[1753320990635,3.1368,3639.2,3639.1,1.2335]
[1753320990812,1.32491573,3640.9,3639.3,0.7761]
[1753320991031,1.32491573,3640.9,3639.4,1.2042]
[1753320991032,0.1368,3639.8,3639.4,1.2042]
[1753320991242,3.0,3639.6,3639.5,3.52367107]
[1753320991403,3.0,3639.6,3639.5,3.95177107]
[1753320991603,4.235,3639.7,3639.6,2.74755467]
[1753320991804,4.235,3639.7,3639.6,3.94645467]
[1753320992046,4.235,3639.7,3639.6,4.62953724]
[1753320992343,7.235,3639.8,3639.7,3.55003098]
[1753320992554,7.235,3639.8,3639.7,3.97813098]
[1753320993105,7.235,3639.8,3639.7,1.2307]
[1753320993608,4.235,3639.8,3639.7,1.2307]
[1753320993804,7.235,3639.8,3639.7,1.2307]
[1753320994311,3.0,3639.7,3639.5,0.7554]
[1753320994527,4.235,3639.6,3639.5,0.7554]
[1753320994714,7.235,3639.6,3639.5,1.1835]
[1753320995411,7.235,3639.6,3639.1,2.78791965]
[1753320995412,3.7887,3639.5,3639.1,0.04]
[1753320995610,32.88465667,3639.2,3639.1,0.04]
[1753320995920,37.12965667,3639.2,3639.1,0.04]
[1753320996645,37.60025667,3639.2,3639.1,0.04]
[1753320997018,40.60025667,3639.2,3639.1,0.04]
[1753320997744,40.12965667,3639.2,3639.1,0.04]
[1753320997935,40.60025667,3639.2,3639.1,0.04]
[1753320999612,10.60025667,3639.2,3639.1,0.04]
[1753320999912,40.60025667,3639.2,3639.1,0.04]
[1753321002413,40.60025667,3639.2,3638.6,0.001]
[1753321002414,32.74823425,3638.7,3638.6,0.001]
[1753321002616,39.98823425,3638.7,3638.6,0.001]
[1753321002852,40.43013425,3638.7,3638.6,0.001]
[1753321003149,41.23503425,3638.7,3638.6,1e-08]
[1753321005411,55.73503425,3638.7,3638.6,1e-08]
[1753321006548,25.73503425,3638.7,3638.6,1e-08]
[1753321006770,55.73503425,3638.7,3638.6,1e-08]
[1753321008447,25.73503425,3638.7,3638.6,1e-08]
[1753321008633,55.73503425,3638.7,3638.6,1e-08]
[1753321013130,25.73503425,3638.7,3638.6,1e-08]
[1753321013320,2.74861195,3638.2,3638.1,1e-08]
[1753321013520,40.79016959,3638.2,3638.1,1e-08]
[1753321013722,40.75581195,3638.2,3638.1,1e-08]
[1753321013928,41.19771195,3638.2,3638.1,1e-08]
[1753321016463,50.70121906,3638.2,3638.1,1e-08]
[1753321016661,51.0300027,3638.2,3638.1,1e-08]
[1753321016838,65.5300027,3638.2,3638.1,1e-08]
[1753321017274,2.75012375,3636.2,3635.9,0.4281]
[1753321017434,9.98212375,3636.2,3636.1,0.4681]
[1753321017626,7.232,3636.2,3636.1,0.4681]
[1753321017827,7.232,3636.2,3636.1,1.43032]
[1753321018032,9.98212375,3636.2,3636.1,1.43032]
[1753321018233,9.99412375,3636.2,3636.1,0.8643]
[1753321018878,9.99412375,3636.2,3632.5,0.1436993]
[1753321018879,30.0,3635.1,3632.5,0.1436993]
[1753321019061,30.0,3634.9,3633.2,0.7632]
[1753321019267,30.0,3634.9,3633.6,0.4281]
[1753321019268,3.0,3634.5,3633.6,0.4281]
[1753321019449,30.0,3634.3,3633.0,0.8111]
[1753321019648,0.4419,3635.0,3633.3,0.8111]
[1753321019649,4.307,3634.2,3633.3,0.8111]
[1753321019971,4.308,3634.1,3633.4,0.4281]
[1753321020174,4.308,3634.0,3633.5,0.8111]
[1753321020377,3.0,3633.9,3633.6,0.4281]
[1753321020574,4.315,3633.8,3633.7,0.4281]
[1753321020749,7.316,3633.8,3633.7,0.4281]
[1753321020962,5.75209158,3633.6,3633.5,0.8111]
[1753321021163,2.75239458,3633.2,3633.0,0.7739]
[1753321021474,10.07439458,3633.2,3632.5,0.7739]
[1753321021675,40.51629458,3633.2,3633.1,1e-08]
[1753321021890,40.65620603,3633.2,3633.1,1e-08]
[1753321022176,40.07839458,3633.2,3633.1,1e-08]
[1753321023383,40.08339458,3633.2,3633.1,1e-08]
[1753321023570,10.08339458,3633.2,3633.1,1e-08]
[1753321023769,7.331,3633.2,3633.1,0.42810001]
[1753321024283,10.08339458,3633.2,3633.1,0.42810001]
[1753321024679,7.331,3633.2,3633.1,0.42810001]
[1753321025545,7.331,3633.2,3633.1,1.23450001]
[1753321026169,3.0,3633.2,3633.1,1.23450001]
[1753321026678,4.33,3633.5,3633.3,0.788]
[1753321026895,4.33,3633.7,3633.4,0.4281]
[1753321027096,4.331,3633.7,3633.6,0.788]
[1753321027304,4.331,3633.7,3633.6,1.2161]
[1753321027466,3.0,3633.8,3633.6,1.2161]
[1753321027667,3.0,3633.8,3633.6,0.788]
[1753321027867,3.0,3633.8,3633.7,0.4281]
[1753321028177,4.33,3633.9,3633.7,0.82493298]
[1753321028376,4.33,3633.9,3633.7,0.4281]
[1753321028578,4.33,3633.9,3633.8,0.7732]
[1753321028899,3.0,3634.0,3633.8,1.2013]
[1753321029127,3.0,3634.0,3633.1,1e-08]
[1753321029295,5.75239458,3633.2,3633.1,1e-08]
[1753321029477,10.08739458,3633.2,3633.1,1e-08]
[1753321029669,7.335,3633.2,3633.1,1e-08]
[1753321029871,10.08739458,3633.2,3633.1,1e-08]
[1753321031101,7.335,3633.2,3633.1,0.42810001]
[1753321031801,7.335,3633.2,3633.1,0.82800219]
[1753321032001,3.0,3633.2,3633.1,0.42810001]
[1753321032190,30.0,3634.9,3633.3,0.779]
[1753321032499,30.0,3634.9,3633.5,0.779]
[1753321032500,7.341,3634.8,3633.5,0.779]
[1753321032662,4.341,3634.8,3633.6,0.4281]
[1753321032862,4.341,3634.8,3633.9,2.75181002]
[1753321032863,7.09219954,3634.8,3633.9,2.75181002]
[1753321033122,4.341,3634.8,3634.0,1.07029078]
[1753321033417,4.341,3634.8,3634.2,3.5580298]
[1753321033698,4.341,3634.8,3634.4,2.75145094]
[1753321033863,4.341,3634.8,3634.5,0.4281]
[1753321034066,4.341,3634.8,3634.6,0.4281]
[1753321034293,3.0,3634.7,3634.2,3.55801428]
[1753321034496,3.0,3634.7,3634.3,3.10734922]
[1753321034808,4.341,3634.8,3634.3,3.10734594]
[1753321035006,3.0,3634.7,3634.4,0.4281]
[1753321035309,4.341,3634.8,3634.5,2.75141009]
[1753321035508,4.341,3634.8,3634.7,3.5166587]
[1753321035708,7.341,3634.8,3634.7,3.91248978]
[1753321035914,7.341,3634.8,3634.7,4.34058978]
[1753321036080,3.0,3634.8,3634.7,4.34058978]
[1753321036281,4.337,3635.3,3634.9,2.75105502]
[1753321036495,4.337,3635.3,3635.0,3.17910657]
[1753321036689,4.337,3635.3,3635.2,3.50328028]
[1753321036890,4.336,3635.6,3635.2,0.7524]
[1753321037106,4.336,3635.6,3635.3,0.4281]
[1753321037326,3.0,3635.5,3635.4,3.17876696]
[1753321037474,3.0,3635.5,3635.3,2.75079267]
[1753321037674,3.0,3635.5,3635.4,2.75072894]
[1753321037902,3.0,3635.5,3635.4,3.37612868]
[1753321038208,3.0,3635.5,3635.4,3.80422868]
[1753321039027,3.0,3635.5,3635.4,1.05349974]
[1753321039180,3.0,3635.5,3635.4,0.5649]
[1753321039915,3.0,3635.5,3635.4,3.31562894]
[1753321040098,3.0,3635.5,3635.4,0.5649]
[1753321040700,3.0,3635.5,3635.4,3.31562894]
[1753321041514,3.0,3635.5,3635.4,0.5649]
[1753321041690,4.336,3635.6,3635.5,2.75065328]
[1753321041892,4.336,3635.6,3635.5,1.10997486]
[1753321042091,4.336,3635.6,3635.5,0.4281]
[1753321042296,4.336,3635.6,3635.5,3.17875328]
[1753321042490,0.04,3635.9,3635.5,3.17875328]
[1753321042491,0.04,3635.9,3635.8,2.75042631]
[1753321042704,0.04,3635.9,3635.7,0.8123]
[1753321043015,0.04,3635.9,3635.8,0.5649]
[1753321043493,0.04,3635.9,3635.8,3.31532631]
[1753321044278,0.04,3635.9,3635.8,3.75412749]
[1753321044479,0.04,3635.9,3635.8,1.00370118]
[1753321044678,0.04,3635.9,3635.8,3.75412749]
[1753321045117,0.04,3635.9,3635.8,1.00370118]
[1753321045297,0.04,3635.9,3635.8,0.5649]
[1753321045819,0.04,3635.9,3635.8,3.31532631]
[1753321046015,0.04,3635.9,3635.8,0.5649]
[1753321046215,0.04,3635.9,3635.8,0.1368]
[1753321046384,0.04,3635.9,3635.0,0.8046]
[1753321046385,5.75044592,3635.8,3635.2,2.7508654]
[1753321046583,7.322,3635.7,3635.6,0.1368]
[1753321046819,10.07250196,3635.7,3635.6,0.1368]
[1753321047020,7.322,3635.7,3635.6,0.1368]
[1753321050023,7.322,3635.7,3635.6,0.5649]
[1753321050587,7.322,3635.7,3635.6,0.1368]
[1753321051511,10.52810196,3635.7,3635.6,0.1368]
[1753321051826,4.322,3635.7,3635.3,0.1368]
[1753321052024,3.0,3635.6,3635.5,2.750651]
[1753321052327,3.0,3635.6,3635.5,3.178751]
[1753321052485,3.0,3635.6,3635.5,0.5649]
[1753321052687,3.0,3635.6,3635.5,3.31555328]
[1753321053097,3.0,3635.6,3635.5,2.88745328]
[1753321053623,4.322,3635.7,3635.6,2.75057762]
[1753321053824,4.361,3635.9,3635.8,2.75042631]
[1753321054121,4.361,3635.9,3635.8,3.17852631]
[1753321054489,4.361,3635.9,3635.5,0.60663575]
[1753321054846,4.361,3635.9,3635.7,2.75049324]
[1753321055423,4.361,3635.9,3635.3,0.7796]
[1753321055424,4.361,3635.9,3635.8,2.75042631]
[1753321056201,4.361,3635.9,3635.7,2.75043978]
[1753321056592,4.361,3635.9,3635.8,2.75042631]
[1753321058198,4.361,3635.9,3635.8,3.17852631]
[1753321058404,4.361,3635.9,3635.8,3.77143584]
[1753321059439,0.04,3635.9,3635.8,3.77143584]
[1753321061105,0.04,3635.9,3635.8,3.34333584]
[1753321061308,0.002,3636.4,3636.3,2.75004812]
[1753321062041,0.002,3636.4,3636.3,3.97044812]
[1753321062338,0.002,3636.4,3636.3,4.64385839]
[1753321063811,0.002,3636.4,3636.3,4.78065839]
[1753321064311,1e-08,3636.4,3636.3,5.34417833]
[1753321064506,1e-08,3636.4,3636.3,5.33065839]
[1753321065608,1e-08,3636.4,3636.3,2.58061027]
[1753321065948,1e-08,3636.4,3636.3,5.33065839]
[1753321066246,1e-08,3636.4,3636.3,5.34417833]
[1753321066828,1e-08,3636.4,3636.3,5.33065839]
[1753321068409,1e-08,3636.4,3636.3,9.63665839]
[1753321069143,1e-08,3636.4,3636.3,12.63665839]
[1753321072062,0.002,3637.0,3636.9,2.74959443]
[1753321072261,1e-08,3637.0,3636.9,8.94423066]
[1753321072570,1e-08,3637.0,3636.9,9.49562207]
[1753321072748,1e-08,3637.2,3637.1,3.52964323]
[1753321072945,1e-08,3637.2,3637.1,7.84214804]
[1753321073152,1e-08,3637.2,3637.1,9.61920024]
[1753321074033,1e-08,3637.2,3637.1,9.61820024]
[1753321074658,1e-08,3637.2,3637.1,4.89210024]
[1753321074858,1e-08,3637.2,3637.1,7.18224323]
[1753321075034,0.44970001,3637.2,3637.1,0.1368]
[1753321075557,0.44970001,3637.2,3637.1,2.88624323]
[1753321076960,1e-08,3637.2,3637.1,2.88624323]
[1753321077136,1e-08,3637.2,3637.1,7.18224323]
[1753321080271,1e-08,3637.2,3637.1,8.17542072]
[1753321080474,1e-08,3637.2,3637.1,3.87942072]
[1753321080631,0.44970001,3637.2,3637.1,2.88624323]
[1753321080966,0.44970001,3637.2,3637.1,7.17524323]
[1753321082753,1e-08,3637.2,3637.1,7.17524323]
[1753321083159,1e-08,3637.2,3637.1,2.88624323]
[1753321083361,1e-08,3637.2,3637.1,7.73582064]
[1753321085448,1e-08,3637.2,3637.1,7.73282064]
[1753321085648,0.04,3637.9,3637.8,2.74891417]
[1753321085961,0.04,3637.9,3637.8,7.16871417]
[1753321086741,0.04,3637.9,3637.8,7.17071417]
[1753321088480,0.04,3637.9,3637.8,8.1626857]
[1753321088668,0.04,3637.9,3637.8,3.8776857]
[1753321088868,0.04,3637.9,3637.8,8.1596857]
[1753321089851,0.04,3637.9,3637.8,8.9779857]
[1753321090050,0.04,3637.9,3637.8,9.4060857]
[1753321090559,0.04,3637.9,3637.8,8.9779857]
[1753321090763,0.04,3637.9,3637.8,9.4060857]
[1753321091080,1e-08,3637.9,3637.8,9.4060857]
[1753321091492,1e-08,3637.9,3637.8,9.9560857]
[1753321094062,1e-08,3637.9,3637.8,8.9729857]
[1753321095587,1e-08,3637.9,3637.8,9.9510857]
[1753321098687,1e-08,3637.9,3637.8,12.9510857]
[1753321099202,1e-08,3638.7,3638.1,0.55]
[1753321099500,1e-08,3638.7,3638.6,3.67760978]
[1753321099702,1e-08,3638.7,3638.6,7.96608626]
[1753321099909,1e-08,3638.7,3638.6,7.95260978]
[1753321100193,0.002,3640.2,3638.8,0.55]
[1753321100409,0.002,3640.2,3639.8,2.8842037]
[1753321100613,0.002,3640.2,3639.8,7.1602037]
[1753321101060,0.002,3640.2,3639.8,2.8842037]
[1753321101258,0.002,3640.2,3639.8,7.1602037]
[1753321102469,0.002,3640.2,3639.8,2.8842037]
[1753321102670,0.002,3640.2,3639.8,7.80162336]
[1753321104383,0.002,3640.2,3639.8,3.52662336]
[1753321104588,0.002,3640.2,3639.8,7.79862336]
[1753321105001,0.002,3640.2,3639.8,7.79762336]
[1753321106071,0.002,3641.0,3640.8,2.74664908]
[1753321106264,0.002,3641.0,3640.8,7.03008404]
[1753321106469,0.002,3641.0,3640.9,2.74657364]
[1753321107511,0.002,3641.0,3640.9,7.02657364]
[1753321108911,0.002,3641.0,3640.9,7.45467364]
[1753321109085,0.002,3641.0,3640.9,8.84221966]
[1753321109420,0.04,3641.9,3641.6,2.74604569]
[1753321109621,0.04,3641.9,3641.6,7.03646557]
[1753321109781,0.04,3641.9,3641.6,7.15984569]
[1753321110204,0.04,3641.9,3641.6,2.88284569]
[1753321110415,0.04,3641.9,3641.6,7.81163366]
[1753321110621,0.002,3642.5,3642.4,2.74544256]
[1753321110822,0.002,3642.5,3642.4,7.02044256]
[1753321112020,0.002,3642.5,3642.4,2.74544256]
[1753321112224,0.002,3642.5,3642.4,7.03144256]
[1753321112225,0.4755,3642.5,3642.4,7.03144256]
[1753321112620,0.002,3642.5,3642.4,7.03144256]
[1753321113318,0.002,3642.5,3642.2,2.74553265]
[1753321113319,0.8009,3642.4,3642.3,4.285]
[1753321113521,1.2744,3642.4,3642.3,4.285]
[1753321113689,1.2744,3642.4,3642.3,2.74551794]
[1753321113892,1.2744,3642.4,3642.3,7.03051794]
[1753321114093,1e-08,3642.5,3642.4,2.74544256]
[1753321114291,1e-08,3642.5,3642.4,2.75884736]
[1753321115421,0.042,3642.9,3642.4,2.75884736]
[1753321115422,1e-08,3642.6,3642.5,2.74536719]
[1753321115725,1e-08,3642.6,3642.5,7.58236719]
[1753321117150,1e-08,3642.6,3642.5,8.01046719]
[1753321117294,1e-08,3642.6,3642.5,9.10806168]
[1753321117890,1e-08,3642.6,3642.5,4.82106168]
[1753321118092,1e-08,3642.6,3642.5,9.10506168]
[1753321119038,0.47350001,3642.6,3642.5,8.55206168]
[1753321119217,0.47350001,3642.6,3642.5,7.02636719]
[1753321120607,0.47350001,3642.6,3642.5,2.88216719]
[1753321120963,0.47350001,3642.6,3642.5,7.16316719]
[1753321123143,0.042,3642.9,3642.8,2.7451411]
[1753321123342,1e-08,3642.9,3642.8,7.1599411]
[1753321123561,1e-08,3642.9,3642.8,8.50424485]
[1753321125671,0.4497,3643.6,3643.5,2.74461369]
[1753321125868,0.002,3643.6,3643.5,7.03499777]
[1753321126069,0.002,3643.6,3643.5,7.15841369]
[1753321126268,0.002,3643.6,3643.5,8.14872517]
[1753321126571,0.4877,3643.9,3643.7,2.74446304]
[1753321126572,0.04,3643.9,3643.7,2.74446304]
[1753321126736,0.04,3643.9,3643.7,7.03484335]
[1753321126937,0.04,3643.9,3643.7,7.15826304]
[1753321127375,1e-08,3643.9,3643.8,2.74438772]
[1753321127548,1e-08,3643.9,3643.8,0.99105759]
[1753321127874,1e-08,3643.9,3643.5,7.02156893]
[1753321128037,0.4477,3643.8,3643.5,7.02156893]
[1753321128238,0.4477,3643.8,3643.6,2.74452693]
[1753321128445,0.8042,3643.7,3642.0,0.8173]
[1753321128778,0.8042,3643.2,3642.6,2.74523746]
[1753321128979,0.8042,3643.0,3642.4,4.29]
[1753321129277,0.4477,3642.9,3642.5,2.74534955]
[1753321129477,0.8042,3642.8,3642.2,2.74554999]
[1753321129683,0.4477,3642.7,3642.2,0.54912853]
[1753321129977,0.4477,3642.7,3642.2,2.74558827]
[1753321130361,0.4477,3642.6,3642.3,0.01340517]
[1753321130547,0.4477,3642.6,3642.4,2.74538825]
[1753321130749,0.8042,3642.8,3642.5,2.7453451]
[1753321130954,0.8042,3642.8,3642.5,2.74536719]
[1753321131294,0.4477,3642.7,3642.5,2.74536719]
[1753321131497,0.8042,3642.8,3642.6,2.74529182]
[1753321132206,0.4477,3642.7,3642.6,2.74529182]
[1753321132398,0.4477,3642.7,3641.8,2.74586275]
[1753321132602,0.4477,3642.7,3641.9,4.56658628]
[1753321133372,0.4477,3642.7,3642.5,2.74531325]
[1753321133773,0.4477,3642.6,3642.4,2.74543544]
[1753321133974,0.8042,3642.8,3642.4,2.74543544]
[1753321134197,0.4477,3642.7,3642.5,2.74534946]
[1753321135196,0.4477,3642.7,3642.6,2.74529182]
[1753321135498,0.8042,3642.8,3642.7,2.74521646]
[1753321135896,1.2519,3642.8,3642.5,2.74536719]
[1753321136107,0.4477,3642.7,3642.6,2.74528532]
[1753321137613,0.4477,3642.7,3642.6,2.88208532]
[1753321141781,0.8042,3642.8,3642.7,2.74521646]
[1753321142330,1.2519,3642.8,3642.7,2.74521646]
[1753321142684,1.2568,3643.1,3643.0,2.74499039]
[1753321142879,3.58920583,3643.6,3643.4,0.1368]
[1753321142880,0.4477,3643.6,3643.4,0.1368]
[1753321143093,0.4477,3643.5,3643.1,2.74491504]
[1753321143322,0.4477,3643.4,3643.3,2.74476436]
[1753321143621,0.7791,3643.7,3643.6,2.74453836]
[1753321143989,0.7791,3643.7,3643.6,2.88133836]
[1753321144192,1e-08,3643.9,3643.8,2.74438772]
[1753321144715,1e-08,3643.9,3643.8,2.88118772]
[1753321145919,1e-08,3643.9,3643.8,3.32266615]
[1753321146143,1e-08,3643.9,3643.8,4.68128772]
[1753321146445,0.002,3644.4,3644.3,2.74401119]
[1753321146642,0.002,3644.4,3644.3,7.29441231]
[1753321146809,0.002,3644.4,3644.3,7.85931231]
[1753321147740,1e-08,3644.4,3644.3,9.22461231]
[1753321152510,1e-08,3644.4,3644.3,4.94861231]
[1753321152840,1e-08,3644.4,3644.3,8.78951231]
[1753321154758,1e-08,3644.4,3644.3,8.78651231]
[1753321154946,1e-08,3644.4,3644.3,9.21461231]
[1753321155242,0.002,3645.0,3644.6,3.29378532]
[1753321155412,0.002,3645.0,3644.6,7.57414869]
[1753321155614,0.002,3645.0,3644.6,7.69758532]
[1753321156344,1e-08,3644.9,3644.8,2.74363476]
[1753321156538,1e-08,3644.9,3644.8,7.00963476]
[1753321156845,1e-08,3644.9,3644.8,8.23326677]
[1753321157343,1e-08,3644.9,3644.8,8.23226677]
[1753321165556,0.002,3645.1,3645.0,2.74348422]
[1753321165764,0.002,3645.1,3645.0,7.13528422]
[1753321166678,0.002,3645.1,3645.0,7.13428422]
[1753321166842,0.002,3645.1,3645.0,8.36833179]
[1753321170875,0.002,3645.1,3645.0,8.36333179]
[1753321171856,0.4571,3645.5,3645.4,2.74318318]
[1753321172078,0.4571,3645.5,3645.4,6.99218318]
[1753321172249,0.8199,3645.9,3645.8,2.74288222]
[1753321172451,0.8199,3645.9,3645.8,2.87968222]
[1753321173059,1.277,3645.9,3645.8,2.87968222]
[1753321174850,0.4971,3645.9,3645.8,3.86674717]
[1753321178820,0.04,3645.9,3645.8,3.86674717]
[1753321183713,0.04,3645.9,3645.8,3.88008796]
[1753321183912,0.04,3645.9,3645.8,3.86674717]
[1753321187615,1.3079,3645.9,3645.8,7.11368222]
[1753321188241,1.3079,3645.9,3645.8,0.1368]
[1753321188742,1.3079,3645.9,3645.8,2.87968222]
[1753321190129,1.3079,3645.9,3645.8,0.1368]
[1753321190342,1.81799353,3645.9,3645.8,0.1368]
[1753321190527,1.3079,3645.9,3645.8,0.1368]
[1753321194616,5.5399,3645.9,3645.4,2.7431758]
[1753321194857,0.4521,3645.8,3645.5,0.1368]
[1753321195558,0.804,3645.7,3645.5,0.1368]
[1753321195938,0.4521,3645.6,3645.5,0.1368]
[1753321197083,0.3521,3645.6,3645.5,0.1368]
[1753321197286,0.3521,3645.6,3644.6,2.7437519]
[1753321197287,0.8159,3645.1,3643.9,2.74431241]
[1753321197454,4.23,3645.0,3644.8,0.1368]
[1753321197870,0.8159,3644.9,3644.8,0.1368]
[1753321199100,1.268,3644.9,3644.8,0.1368]
[1753321200112,5.498,3644.9,3644.8,0.1368]
[1753321202181,9.00809353,3644.9,3644.8,0.1368]
[1753321202392,9.00809353,3644.9,3644.1,0.1368]
[1753321202393,0.7854,3644.4,3644.1,0.1368]
[1753321202586,4.23,3644.3,3644.1,0.1368]
[1753321202795,4.23,3644.3,3644.0,0.001]
[1753321202796,3.52956179,3644.1,3644.0,0.001]
[1753321203166,10.29010364,3644.1,3644.0,0.001]
[1753321203362,43.29010364,3644.1,3644.0,0.001]
[1753321203672,47.52510364,3644.1,3644.0,0.001]
[1753321205394,41.21666179,3644.1,3644.0,0.001]
[1753321206785,11.21666179,3644.1,3644.0,0.001]
[1753321207002,41.21666179,3644.1,3644.0,0.001]
[1753321208111,11.21666179,3644.1,3644.0,0.001]
[1753321208514,41.21666179,3644.1,3644.0,0.001]
[1753321208722,41.21566179,3644.1,3644.0,0.001]
[1753321210622,47.81066179,3644.1,3644.0,0.001]
[1753321211640,40.8325,3644.1,3644.0,0.001]
[1753321211843,17.80866179,3644.1,3644.0,0.001]
[1753321212942,10.8325,3644.1,3644.0,0.001]
[1753321213142,15.0705,3644.1,3644.0,0.001]
[1753321213460,17.81466179,3644.1,3644.0,0.001]
[1753321213655,13.57666179,3644.1,3644.0,0.001]
[1753321213866,17.81366179,3644.1,3644.0,0.001]
[1753321217878,10.8325,3644.1,3644.0,0.001]
[1753321218159,17.81266179,3644.1,3644.0,0.001]
[1753321218630,15.0685,3644.1,3644.0,0.001]
[1753321218828,15.0695,3644.1,3644.0,0.001]
[1753321219833,17.81366179,3644.1,3644.0,0.001]
[1753321221410,15.0695,3644.1,3644.0,0.001]
[1753321221711,17.81366179,3644.1,3644.0,0.001]
[1753321222388,47.81366179,3644.1,3644.0,0.001]
[1753321227264,54.13389706,3644.1,3644.0,0.001]
[1753321228859,0.8139,3643.7,3643.5,0.001]
[1753321229065,47.43205353,3643.6,3643.5,0.001]
[1753321229271,33.55866436,3643.3,3643.2,0.001]
[1753321229597,41.11204426,3643.3,3643.2,0.001]
[1753321229793,2.74497816,3643.1,3642.6,0.001]
[1753321229974,42.84470101,3642.9,3642.6,0.001]
[1753321230388,43.30200101,3642.9,3642.6,0.001]
[1753321231298,43.89146673,3642.9,3642.6,0.001]